fUST/lending_fUST_20250508
["ID","MTS","AMOUNT","RATE_DAILY","PERIOD"]
[360253835,1746665439840,-400.0,0.00013698,2]
[360253837,1746665439850,-400.0,0.00013698,2]
[360253841,1746665439860,-998.49,0.00013698,2]
[360253844,1746665439870,-400.0,0.00013698,2]
[360253847,1746665439880,-400.0,0.00013698,2]
[360253850,1746665439889,-400.0,0.00013698,2]
[360253852,1746665439898,-400.0,0.00013698,2]
[360253855,1746665439907,-1279.61,0.00013698,2]
[360253859,1746665439917,-400.0,0.00013698,2]
[360253862,1746665439927,-454.39,0.00013698,2]
[360253865,1746665439936,-400.0,0.00013698,2]
[360253868,1746665439945,-400.0,0.00013698,2]
[360253871,1746665439954,-400.0,0.00013698,2]
[360253873,1746665439964,-400.0,0.00013698,2]
[360253876,1746665439974,-400.0,0.00013698,2]
[360253879,1746665439984,-1332.75,0.00013698,2]
[360253882,1746665439993,-400.0,0.00013698,2]
[360253886,1746665440005,-5826.8,0.00013698,2]
[360253889,1746665440014,-400.0,0.00013698,2]
[360253892,1746665440024,-400.0,0.00013698,2]
[360253895,1746665440034,-400.0,0.00013698,2]
[360253898,1746665440043,-400.0,0.00013698,2]
[360253901,1746665440053,-345.53881491,0.00013698,2]
[360253903,1746665440062,-400.0,0.00013698,2]
[360253905,1746665440071,-2767.4,0.00013698,2]
[360253907,1746665440081,-400.0,0.00013698,2]
[360253909,1746665440091,-400.0,0.00013698,2]
[360253912,1746665440100,-10.19332895,0.00013698,2]
[360253943,1746665440254,-389.80667105,0.00013698,2]
[360253945,1746665440264,-590.1,0.00013698,2]
[360253947,1746665440274,-590.1,0.00013698,2]
[360253948,1746665440283,-590.1,0.00013698,2]
[360253950,1746665440293,-590.1,0.00013698,2]
[360253953,1746665440302,-590.1,0.00013698,2]
[360253956,1746665440311,-590.1,0.00013698,2]
[360253959,1746665440321,-590.1,0.00013698,2]
[360253962,1746665440330,-590.1,0.00013698,2]
[360253965,1746665440341,-590.1,0.00013698,2]
[360253968,1746665440351,-923.47,0.00013698,2]
[360253971,1746665440361,-590.1,0.00013698,2]
[360253974,1746665440370,-590.1,0.00013698,2]
[360253977,1746665440379,-400.0,0.00013698,2]
[360253980,1746665440389,-590.1,0.00013698,2]
[360253983,1746665440399,-590.1,0.00013698,2]
[360253986,1746665440410,-590.1,0.00013698,2]
[360253989,1746665440420,-590.1,0.00013698,2]
[360253992,1746665440429,-590.1,0.00013698,2]
[360253995,1746665440438,-590.1,0.00013698,2]
[360253998,1746665440448,-590.1,0.00013698,2]
[360254001,1746665440457,-400.0,0.00013698,2]
[360254004,1746665440467,-590.1,0.00013698,2]
[360254007,1746665440476,-590.1,0.00013698,2]
[360254010,1746665440485,-590.1,0.00013698,2]
[360254012,1746665440494,-590.1,0.00013698,2]
[360254015,1746665440504,-944.33,0.00013698,2]
[360254018,1746665440513,-590.1,0.00013698,2]
[360254021,1746665440523,-590.16043069,0.00013698,2]
[360254025,1746665440532,-417.77232623,0.00013698,2]
[360254028,1746665440541,-400.0,0.00013698,2]
[360254031,1746665440551,-400.0,0.00013698,2]
[360254034,1746665440560,-607.98,0.00013698,2]
[360254037,1746665440570,-400.0,0.00013698,2]
[360254040,1746665440579,-6122.02,0.00013698,2]
[360254043,1746665440589,-400.0,0.00013698,2]
[360254046,1746665440598,-2505.72,0.00013698,2]
[360254049,1746665440607,-730.16,0.00013698,2]
[360254052,1746665440617,-400.0,0.00013698,2]
[360254055,1746665440628,-400.0,0.00013698,2]
[360254058,1746665440638,-400.0,0.00013698,2]
[360254061,1746665440648,-400.0,0.00013698,2]
[360254064,1746665440658,-2449.15,0.00013698,2]
[360254067,1746665440668,-421.72552418,0.00013698,2]
[360254070,1746665440678,-400.0,0.00013698,2]
[360254074,1746665440689,-400.0,0.00013698,2]
[360254076,1746665440698,-400.0,0.00013698,2]
[360254079,1746665440708,-400.0,0.00013698,2]
[360254083,1746665440717,-679.61,0.00013698,2]
[360254086,1746665440732,-603.97,0.00013698,2]
[360254087,1746665440746,-1212.6,0.00013698,2]
[360254090,1746665440755,-1780.7,0.00013698,2]
[360254093,1746665440765,-489.6,0.00013698,2]
[360254096,1746665440775,-569.59,0.00013698,2]
[360254099,1746665440785,-1235.18,0.00013698,2]
[360254102,1746665440794,-400.0,0.00013698,2]
[360254105,1746665440804,-1927.51,0.00013698,2]
[360254108,1746665440814,-998.02,0.00013698,2]
[360254111,1746665440824,-6152.05,0.00013698,2]
[360254114,1746665440833,-366.650752,0.00013698,2]
[360254117,1746665440843,-366.650752,0.00013698,2]
[360254120,1746665440853,-366.650752,0.00013698,2]
[360254123,1746665440863,-366.650752,0.00013698,2]
[360254126,1746665440872,-2306.01,0.00013698,2]
[360254128,1746665440881,-366.650752,0.00013698,2]
[360254130,1746665440891,-366.650752,0.00013698,2]
[360254132,1746665440901,-366.650752,0.00013698,2]
[360254134,1746665440912,-366.650752,0.00013698,2]
[360254136,1746665440922,-883.29,0.00013698,2]
[360254138,1746665440932,-400.0,0.00013698,2]
[360254140,1746665440942,-400.0,0.00013698,2]
[360254142,1746665440952,-400.0,0.00013698,2]
[360254144,1746665440961,-400.0,0.00013698,2]
[360254145,1746665440970,-528.10087305,0.00013698,2]
[360254146,1746665440980,-934.44,0.00013698,2]
[360254147,1746665440989,-1072.99,0.00013698,2]
[360254148,1746665440999,-400.0,0.00013698,2]
[360254149,1746665441009,-400.0,0.00013698,2]
[360254150,1746665441018,-400.0,0.00013698,2]
[360254151,1746665441028,-568.14,0.00013698,2]
[360254152,1746665441037,-1916.32253585,0.00013698,2]
[360254349,1746665443004,-160.0,0.00013387,2]
[360254351,1746665443013,-69.49746415,0.00013698,2]
[360254353,1746665443023,-400.0,0.00013698,2]
[360254355,1746665443033,-400.0,0.00013698,2]
[360254357,1746665443043,-507.08533764,0.00013698,2]
[360254359,1746665443053,-774.68,0.00013698,2]
[360254361,1746665443064,-470.9,0.00013698,2]
[360254363,1746665443074,-4407.77,0.00013698,2]
[360254365,1746665443083,-151.0,0.00013698,2]
[360254367,1746665443093,-151.0,0.00013698,2]
[360254369,1746665443103,-158.661526,0.00013698,2]
[360254371,1746665443112,-532.4401378,0.00013698,2]
[360254373,1746665443122,-400.0,0.00013698,2]
[360254375,1746665443131,-2025.31,0.00013698,2]
[360254377,1746665443142,-1751.45,0.00013698,2]
[360254379,1746665443151,-400.0,0.00013698,2]
[360254383,1746665443174,-400.0,0.00013698,2]
[360254385,1746665443184,-548.52528244,0.00013698,2]
[360254387,1746665443194,-1400.72,0.00013698,2]
[360254389,1746665443204,-400.0,0.00013698,2]
[360254391,1746665443213,-400.0,0.00013698,2]
[360254393,1746665443223,-2312.92,0.00013698,2]
[360254395,1746665443234,-1836.92,0.00013698,2]
[360254397,1746665443246,-400.0,0.00013698,2]
[360254399,1746665443256,-400.0,0.00013698,2]
[360254401,1746665443266,-1591.24,0.00013698,2]
[360254403,1746665443276,-400.0,0.00013698,2]
[360254405,1746665443286,-400.0,0.00013698,2]
[360254407,1746665443296,-400.0,0.00013698,2]
[360254409,1746665443307,-1800.4,0.00013698,2]
[360254412,1746665443317,-1669.18,0.00013698,2]
[360254414,1746665443328,-904.57,0.00013698,2]
[360254416,1746665443338,-822.97,0.00013698,2]
[360254418,1746665443348,-400.0,0.00013698,2]
[360254420,1746665443358,-500.0,0.00013699,2]
[360254422,1746665443367,-500.0,0.00013699,2]
[360254424,1746665443377,-539.68882376,0.00013699,2]
[360254426,1746665443387,-3423.860879,0.00013699,2]
[360254428,1746665443397,-551.505451,0.00013699,2]
[360254430,1746665443407,-551.505451,0.00013699,2]
[360254432,1746665443417,-551.505451,0.00013699,2]
[360254434,1746665443427,-551.505451,0.00013699,2]
[360254436,1746665443436,-551.505451,0.00013699,2]
[360254438,1746665443448,-551.505451,0.00013699,2]
[360254440,1746665443458,-551.505451,0.00013699,2]
[360254442,1746665443467,-551.505451,0.00013699,2]
[360254445,1746665443478,-1666.3435032,0.00013699,2]
[360254447,1746665443488,-173.801521,0.00013699,2]
[360254449,1746665443498,-173.801521,0.00013699,2]
[360254451,1746665443508,-173.801521,0.00013699,2]
[360254453,1746665443522,-173.801521,0.00013699,2]
[360254455,1746665443532,-173.801521,0.00013699,2]
[360254457,1746665443541,-173.801521,0.00013699,2]
[360254459,1746665443551,-173.801521,0.00013699,2]
[360254461,1746665443561,-173.801521,0.00013699,2]
[360254463,1746665443571,-40903.6535162,0.00013699,2]
[360254465,1746665443582,-5981.44,0.00013699,2]
[360254467,1746665443592,-5326.56,0.00013699,2]
[360254469,1746665443606,-3037.83315761,0.00013699,2]
[360254472,1746665443620,-413.09030773,0.00013699,2]
[360254536,1746665473457,1000.0,0.00011955,2]
[360254546,1746665848548,1184.95071557,0.00012,2]
[360254625,1746666631998,-300.0,0.00012033,2]
[360254627,1746666632008,-300.0,0.00012034,2]
[360254629,1746666632018,-300.0,0.00012034,2]
[360254631,1746666632028,-300.0,0.00012034,2]
[360254633,1746666632038,-300.0,0.00012034,2]
[360254635,1746666632047,-1200.0,0.00012034,2]
[360254637,1746666632057,-214.83373205,0.00012035,2]
[360254639,1746666632067,-253.94714918,0.00012035,2]
[360254641,1746666632077,-500.0,0.00012035,2]
[360254643,1746666632087,-500.0,0.00012035,2]
[360254645,1746666632097,-394.41322723,0.00012035,2]
[360254647,1746666632110,-500.0,0.00012035,2]
[360254649,1746666632122,-500.0,0.00012035,2]
[360254651,1746666632131,-500.0,0.00012035,2]
[360254653,1746666632141,-500.0,0.00012035,2]
[360254655,1746666632151,-215.57495317,0.00012035,2]
[360254657,1746666632162,-500.0,0.00012035,2]
[360254659,1746666632173,-500.0,0.00012035,2]
[360254661,1746666632182,-500.0,0.00012035,2]
[360254663,1746666632193,-500.0,0.00012035,2]
[360254665,1746666632202,-500.0,0.00012035,2]
[360254667,1746666632212,-500.0,0.00012035,2]
[360254669,1746666632221,-500.0,0.00012035,2]
[360254671,1746666632231,-500.0,0.00012035,2]
[360254673,1746666632240,-500.0,0.00012035,2]
[360254675,1746666632250,-540.27532492,0.00012035,2]
[360254677,1746666632260,-500.0,0.00012035,2]
[360254679,1746666632270,-500.0,0.00012035,2]
[360254681,1746666632279,-500.0,0.00012035,2]
[360254682,1746666632289,-500.0,0.00012035,2]
[360254684,1746666632299,-500.0,0.00012035,2]
[360254686,1746666632308,-500.0,0.00012035,2]
[360254688,1746666632318,-500.0,0.00012035,2]
[360254690,1746666632328,-500.0,0.00012035,2]
[360254692,1746666632338,-500.0,0.00012035,2]
[360254695,1746666632348,-500.0,0.00012035,2]
[360254697,1746666632358,-500.0,0.00012035,2]
[360254699,1746666632367,-500.0,0.00012035,2]
[360254701,1746666632377,-500.0,0.00012035,2]
[360254703,1746666632386,-500.0,0.00012035,2]
[360254705,1746666632396,-500.0,0.00012035,2]
[360254707,1746666632406,-500.0,0.00012035,2]
[360254709,1746666632415,-500.0,0.00012035,2]
[360254711,1746666632426,-500.0,0.00012035,2]
[360254713,1746666632435,-500.0,0.00012035,2]
[360254714,1746666632444,-500.0,0.00012035,2]
[360254716,1746666632454,-373.30288337,0.00012035,2]
[360254718,1746666632464,-500.0,0.00012035,2]
[360254720,1746666632473,-500.0,0.00012035,2]
[360254723,1746666632485,-500.0,0.00012035,2]
[360254724,1746666632495,-500.0,0.00012035,2]
[360254726,1746666632505,-500.0,0.00012035,2]
[360254728,1746666632515,-500.0,0.00012035,2]
[360254730,1746666632525,-439.15688543,0.00012035,2]
[360254732,1746666632534,-500.0,0.00012035,2]
[360254734,1746666632544,-500.0,0.00012035,2]
[360254736,1746666632554,-500.0,0.00012035,2]
[360254738,1746666632562,-500.0,0.00012035,2]
[360254740,1746666632572,-500.0,0.00012035,2]
[360254742,1746666632581,-500.0,0.00012035,2]
[360254744,1746666632590,-476.57298726,0.00012035,2]
[360254746,1746666632600,-500.0,0.00012035,2]
[360254748,1746666632609,-500.0,0.00012035,2]
[360254750,1746666632618,-500.0,0.00012035,2]
[360254752,1746666632628,-500.0,0.00012035,2]
[360254754,1746666632637,-500.0,0.00012035,2]
[360254756,1746666632647,-500.0,0.00012035,2]
[360254758,1746666632657,-500.0,0.00012035,2]
[360254760,1746666632669,-500.0,0.00012035,2]
[360254762,1746666632678,-500.0,0.00012035,2]
[360254764,1746666632689,-500.0,0.00012035,2]
[360254766,1746666632700,-500.0,0.00012035,2]
[360254768,1746666632709,-505.26896647,0.00012035,2]
[360254770,1746666632719,-3069.45858856,0.00012036,2]
[360254798,1746666632967,-346.70315762,0.00012036,2]
[360254800,1746666632977,-13369.04187363,0.00012037,2]
[360254855,1746666633687,-4624.983028,0.00012037,2]
[360255208,1746666640385,-6905.97509837,0.00012037,2]
[360255210,1746666640394,-413.0903078,0.00012423,2]
[360255212,1746666640405,-1000.0,0.00012658,2]
[360255214,1746666640414,-155.0,0.00012803,2]
[360255216,1746666640424,-1349.9338678,0.00012904,2]
[360255218,1746666640441,-650.0661322,0.00012904,2]
[360255220,1746666640450,-361.47174504,0.00012986,2]
[360255222,1746666640463,-222.7476,0.00013078,2]
[360255224,1746666640473,-9608.66534996,0.00013093,2]
[360255226,1746666640483,-361.47174502,0.00013137,2]
[360255228,1746666640493,-3000.0,0.00013151,2]
[360255230,1746666640502,-420.0,0.00013209,2]
[360255232,1746666640512,-420.0,0.0001321,2]
[360255234,1746666640523,-420.0,0.0001321,2]
[360255236,1746666640533,-1680.0,0.00013238,2]
[360255238,1746666640544,-361.47174502,0.00013288,2]
[360255240,1746666640554,-150.0,0.00013308,2]
[360255242,1746666640563,-546.0,0.00013346,2]
[360255244,1746666640573,-708.0,0.00013346,2]
[360255246,1746666640583,-2241.0,0.00013346,2]
[360255248,1746666640593,-404.0,0.00013346,2]
[360255250,1746666640603,-4000.0,0.00013397,2]
[360255252,1746666640612,-160.0,0.00013401,2]
[360255254,1746666640621,-313.97932589,0.00013401,2]
[360255256,1746666640631,-160.0,0.00013401,2]
[360255259,1746666640652,-160.0,0.00013401,2]
[360255263,1746666640664,-212.07737469,0.00013401,2]
[360255266,1746666640674,-160.0,0.00013401,2]
[360255268,1746666640691,-842.118303,0.00013401,2]
[360255270,1746666640701,-160.0,0.00013401,2]
[360255272,1746666640711,-160.0,0.00013401,2]
[360255274,1746666640721,-160.0,0.00013401,2]
[360255276,1746666640732,-160.0,0.00013401,2]
[360255278,1746666640742,-160.0,0.00013401,2]
[360255280,1746666640752,-361.47174502,0.00013439,2]
[360255282,1746666640763,-652.20111982,0.00013448,2]
[360255284,1746666640773,-216.28,0.00013579,2]
[360255286,1746666640784,-361.47174502,0.0001359,2]
[360255288,1746666640793,-195.0,0.000136,2]
[360255290,1746666640803,-195.0,0.000136,2]
[360255293,1746666640814,-345.0229236,0.0001363,2]
[360255295,1746666640824,-5000.0,0.00013644,2]
[360255297,1746666640834,-314.46439031,0.00013673,2]
[360255299,1746666640844,-500.0,0.00013673,2]
[360255301,1746666640854,-500.0,0.00013673,2]
[360255303,1746666640864,-500.0,0.00013673,2]
[360255305,1746666640873,-500.0,0.00013673,2]
[360255307,1746666640884,-500.0,0.00013673,2]
[360255309,1746666640895,-500.0,0.00013673,2]
[360255311,1746666640906,-500.0,0.00013673,2]
[360255313,1746666640916,-500.0,0.00013673,2]
[360255315,1746666640926,-500.0,0.00013673,2]
[360255317,1746666640942,-503.80233543,0.00013673,2]
[360255319,1746666640954,-500.0,0.00013673,2]
[360255321,1746666640965,-500.0,0.00013673,2]
[360255323,1746666640976,-500.0,0.00013673,2]
[360255325,1746666640987,-177.81895059,0.00013673,2]
[360255327,1746666640997,-500.0,0.00013673,2]
[360255329,1746666641006,-500.0,0.00013673,2]
[360255331,1746666641016,-367.69465666,0.00013673,2]
[360255333,1746666641027,-500.0,0.00013673,2]
[360255335,1746666641037,-500.0,0.00013673,2]
[360255337,1746666641047,-500.0,0.00013673,2]
[360255339,1746666641057,-500.0,0.00013673,2]
[360255341,1746666641067,-517.11327198,0.00013673,2]
[360255343,1746666641077,-500.0,0.00013673,2]
[360255344,1746666641087,-500.0,0.00013673,2]
[360255347,1746666641097,-500.0,0.00013673,2]
[360255349,1746666641107,-500.0,0.00013673,2]
[360255351,1746666641117,-500.0,0.00013673,2]
[360255353,1746666641129,-500.0,0.00013673,2]
[360255355,1746666641141,-500.0,0.00013673,2]
[360255357,1746666641151,-500.0,0.00013673,2]
[360255359,1746666641160,-510.72986517,0.00013673,2]
[360255361,1746666641173,-500.0,0.00013673,2]
[360255363,1746666641186,-208.29046209,0.00013673,2]
[360255365,1746666641195,-500.0,0.00013673,2]
[360255367,1746666641206,-504.80363529,0.00013673,2]
[360255369,1746666641217,-500.0,0.00013673,2]
[360255371,1746666641227,-151.0,0.00013673,2]
[360255373,1746666641237,-6051.16089822,0.0001368,2]
[360255570,1746666643270,-925.1937012,0.0001368,2]
[360255689,1746666791268,-1000.0,0.00012658,2]
[360255690,1746666791293,-300.0,0.00012902,2]
[360255691,1746666791319,-52.15,0.00012903,2]
[360255708,1746667323249,900.27,0.000219,31]
[360255709,1746667323314,900.27,0.000219,31]
[360255710,1746667323376,900.27,0.000219,31]
[360255711,1746667323435,900.27,0.000219,31]
[360255712,1746667323682,900.27,0.000219,31]
[360255713,1746667323723,900.27,0.000219,31]
[360255714,1746667323780,900.27,0.000219,31]
[360255715,1746667323843,900.27,0.000219,31]
[360255716,1746667323919,900.27,0.000219,31]
[360255717,1746667324005,900.27,0.000219,31]
[360255718,1746667324063,900.27,0.000219,31]
[360255719,1746667324129,900.27,0.000219,31]
[360255720,1746667324192,900.27,0.000219,31]
[360255721,1746667324255,900.27,0.000219,31]
[360255722,1746667324326,900.27,0.000219,31]
[360255723,1746667324399,900.27,0.000219,31]
[360255785,1746667816205,10000.0,0.00022,30]
[360255811,1746667832183,-582.9768744,0.00012558,2]
[360255813,1746667832197,-417.0231256,0.00012558,2]
[360255815,1746667832206,-1000.0,0.00012658,2]
[360255817,1746667832216,-222.74770863,0.00012802,2]
[360255819,1746667832226,-300.0,0.00012899,2]
[360255821,1746667832236,-664.63489123,0.00012899,2]
[360255823,1746667832248,-535.36510877,0.00012899,2]
[360255825,1746667832258,-300.0,0.00012899,2]
[360255827,1746667832268,-500.0,0.000129,2]
[360255830,1746667832278,-487.2386094,0.000129,2]
[360255833,1746667832290,-500.0,0.000129,2]
[360255835,1746667832300,-451.20825195,0.000129,2]
[360255838,1746667832309,-500.0,0.000129,2]
[360255840,1746667832319,-500.0,0.000129,2]
[360255843,1746667832329,-500.0,0.000129,2]
[360255845,1746667832339,-391.57298728,0.000129,2]
[360255847,1746667832349,-2000.0,0.00012904,2]
[360255849,1746667832358,-3000.0,0.00013151,2]
[360255851,1746667832367,-708.0,0.00013382,2]
[360255853,1746667832377,-2241.0,0.00013382,2]
[360255855,1746667832387,-1602.45635187,0.00013397,2]
[360255857,1746667832403,-2397.54364813,0.00013397,2]
[360255859,1746667832412,-1489.49509249,0.00013573,2]
[360255861,1746667832422,-1489.49509245,0.00013579,2]
[360255862,1746667832432,-1452.34553956,0.0001358,2]
[360255863,1746667832441,-1489.49509245,0.00013586,2]
[360255864,1746667832451,-1489.49509245,0.00013592,2]
[360255865,1746667832461,-1489.49509245,0.00013598,2]
[360255866,1746667832471,-350.84817591,0.000136,2]
[360255867,1746667832481,-276.0183388,0.0001363,2]
[360255868,1746667832491,-177.76300442,0.00013643,2]
[360255869,1746667832502,-5000.0,0.00013644,2]
[360255870,1746667832512,-533.7199,0.00013646,2]
[360255871,1746667832522,-160.0,0.00013671,2]
[360255872,1746667832532,-842.118303,0.00013671,2]
[360255873,1746667832543,-160.0,0.00013671,2]
[360255874,1746667832554,-160.0,0.00013671,2]
[360255875,1746667832564,-160.0,0.00013671,2]
[360255876,1746667832574,-160.0,0.00013671,2]
[360255877,1746667832583,-160.0,0.00013671,2]
[360255878,1746667832595,-212.07737469,0.00013671,2]
[360255879,1746667832604,-160.0,0.00013671,2]
[360255880,1746667832615,-500.0,0.00013673,2]
[360255881,1746667832624,-500.0,0.00013673,2]
[360255882,1746667832634,-500.0,0.00013673,2]
[360255883,1746667832644,-500.0,0.00013673,2]
[360255884,1746667832654,-500.0,0.00013673,2]
[360255885,1746667832663,-500.0,0.00013673,2]
[360255886,1746667832674,-500.0,0.00013673,2]
[360255887,1746667832686,-500.0,0.00013673,2]
[360255888,1746667832696,-500.0,0.00013673,2]
[360255889,1746667832705,-500.0,0.00013673,2]
[360255890,1746667832715,-423.40370247,0.00013673,2]
[360255894,1746667838443,-1000.0,0.000126,2]
[360255895,1746667838453,-546.0,0.00013382,2]
[360255896,1746667838464,-160.0,0.00013396,2]
[360255897,1746667838474,-160.0,0.00013396,2]
[360255898,1746667838484,-313.97932589,0.00013671,2]
[360255899,1746667838494,-160.0,0.00013671,2]
[360255900,1746667838504,-76.59629753,0.00013673,2]
[360255901,1746667838514,-250.03876938,0.00013673,2]
[360256303,1746667843492,-404.0,0.00013382,2]
[360256306,1746667843502,-57.48744862,0.00013673,2]
[360257147,1746667935323,747.95,0.000219,31]
[360257148,1746667935380,747.95,0.000219,31]
[360257149,1746667935463,747.95,0.000219,31]
[360257150,1746667935512,747.95,0.000219,31]
[360257151,1746667935555,747.95,0.000219,31]
[360257152,1746667935623,747.95,0.000219,31]
[360257153,1746667935683,747.95,0.000219,31]
[360257154,1746667935758,747.95,0.000219,31]
[360257155,1746667935810,747.95,0.000219,31]
[360257156,1746667935864,747.95,0.000219,31]
[360257157,1746667935924,747.95,0.000219,31]
[360257158,1746667935984,747.95,0.000219,31]
[360257159,1746667936048,747.95,0.000219,31]
[360257160,1746667936102,747.95,0.000219,31]
[360257161,1746667936187,747.95,0.000219,31]
[360257162,1746667936234,747.95,0.000219,31]
[360257168,1746668044397,1960.25910541,0.0002,120]
[360257171,1746668278037,2815.0,0.00022,30]
[360257173,1746668349789,4530.99,0.00010959,2]
[360257174,1746668360372,3775.83,0.00010959,2]
[360257175,1746668370820,3146.52,0.00010959,2]
[360257176,1746668381321,2622.1,0.00010959,2]
[360257177,1746668391781,2185.09,0.00010959,2]
[360257181,1746668547894,637.34,0.000219,31]
[360257182,1746668547960,637.34,0.000219,31]
[360257183,1746668548017,637.34,0.000219,31]
[360257184,1746668548067,637.34,0.000219,31]
[360257185,1746668548133,637.34,0.000219,31]
[360257186,1746668548192,637.34,0.000219,31]
[360257187,1746668548252,637.34,0.000219,31]
[360257188,1746668548312,637.34,0.000219,31]
[360257189,1746668548375,637.34,0.000219,31]
[360257190,1746668548431,637.34,0.000219,31]
[360257191,1746668548495,637.34,0.000219,31]
[360257192,1746668548554,637.34,0.000219,31]
[360257193,1746668548810,637.34,0.000219,31]
[360257194,1746668548852,637.34,0.000219,31]
[360257195,1746668548895,637.34,0.000219,31]
[360257196,1746668548939,637.34,0.000219,31]
[360257267,1746669032350,-178.01506976,0.00012008,2]
[360257269,1746669032361,-1200.0,0.00012106,2]
[360257270,1746669032372,-300.0,0.00012106,2]
[360257271,1746669032381,-500.0,0.00012107,2]
[360257272,1746669032391,-500.0,0.00012107,2]
[360257273,1746669032400,-258.76078364,0.00012107,2]
[360257274,1746669032410,-500.0,0.00012107,2]
[360257275,1746669032419,-500.0,0.00012107,2]
[360257276,1746669032429,-500.0,0.00012107,2]
[360257277,1746669032438,-448.14248112,0.00012107,2]
[360257278,1746669032447,-272.01583123,0.00012107,2]
[360257279,1746669032457,-300.0,0.00012107,2]
[360257280,1746669032467,-400.0,0.00012107,2]
[360257281,1746669032477,-400.0,0.00012107,2]
[360257282,1746669032486,-509.93175274,0.00012108,2]
[360257284,1746669032495,-189.11387036,0.00012108,2]
[360257286,1746669032505,-160.89528231,0.00012108,2]
[360257288,1746669032514,-12398.75226029,0.00012108,2]
[360257290,1746669032523,-400.0,0.00012108,2]
[360257291,1746669032532,-400.0,0.00012108,2]
[360257292,1746669032542,-410.01964989,0.00012108,2]
[360257293,1746669032552,-403.01023376,0.00012108,2]
[360257294,1746669032561,-400.0,0.00012108,2]
[360257295,1746669032571,-403.01248068,0.00012108,2]
[360257296,1746669032580,-400.0,0.00012108,2]
[360257297,1746669032590,-400.0,0.00012108,2]
[360257299,1746669032600,-400.0,0.00012108,2]
[360257301,1746669032609,-405.83369611,0.00012108,2]
[360257303,1746669032619,-400.0,0.00012108,2]
[360257304,1746669032628,-400.0,0.00012108,2]
[360257306,1746669032637,-400.0,0.00012108,2]
[360257308,1746669032647,-400.0,0.00012108,2]
[360257310,1746669032656,-400.0,0.00012108,2]
[360257312,1746669032666,-405.75907734,0.00012108,2]
[360257314,1746669032676,-507.81787455,0.00012108,2]
[360257316,1746669032686,-400.0,0.00012108,2]
[360257318,1746669032695,-400.0,0.00012108,2]
[360257320,1746669032705,-400.0,0.00012108,2]
[360257322,1746669032714,-400.0,0.00012108,2]
[360257324,1746669032724,-400.0,0.00012108,2]
[360257326,1746669032734,-400.0,0.00012108,2]
[360257328,1746669032743,-400.0,0.00012108,2]
[360257330,1746669032752,-484.28,0.00012108,2]
[360257332,1746669032761,-400.0,0.00012108,2]
[360257334,1746669032771,-400.0,0.00012108,2]
[360257336,1746669032780,-906.0,0.00012108,2]
[360257338,1746669032789,-400.0,0.00012108,2]
[360257340,1746669032799,-584.08,0.00012108,2]